[Event "Austria Championship Blitz 2024"]
[Site "Innsbruck"]
[Date "2024.06.01"]
[Round "5.22"]
[White "Haralcic, Edin"]
[Black "Gschiel, Alexander"]
[Result "0-1"]
[ECO "D05"]
[WhiteElo "1936"]
[BlackElo "2355"]
[Annotator "RC"]
[PlyCount "52"]
[EventDate "2024.06.01"]
[EventType "swiss"]
[EventCountry "AUT"]
[SourceTitle "playchess.com"]
[Source "ChessBase"]
[SourceQuality "1"]
[TimeControl "180+2"]

1. Nf3 {[%emt 0:00:03]} d5 {[%emt 0:00:01]} 2. b3 {[%emt 0:00:00]} Nf6 {[%emt 0:00:03]} 3. Bb2 {[%emt 0:00:01]} e6 {[%emt 0:00:01]} 4. e3 {[%emt 0:00:01]} c5 {[%emt 0:00:01]} 5. d4 {[%emt 0:00:01]} Nc6 {[%emt 0:00:02]} 6. Nbd2 {[%emt 0:00:03]} cxd4 {[%emt 0:00:05]} 7. exd4 {[%emt 0:00:01]} Bd6 {[%emt 0:00:01]} 8. a3 {[%emt 0:00:02]} O-O {[%emt 0:00:03]} 9. Bd3 {[%emt 0:00:01]} Ne7 {[%emt 0:00:10]} 10. O-O {[%emt 0:00:05]} Ng6 {[%emt 0:00:01]} 11. Bxg6 {[%emt 0:00:23]} hxg6 {[%emt 0:00:02]} 12. Ne5 {[%emt 0:00:03]} g5 {[%emt 0:00:23]} 13. Re1 {[%emt 0:00:09]} g6 {[%emt 0:00:02]} 14. Nf1 {[%emt 0:00:14]} Kg7 {[%emt 0:00:05]} 15. Ng3 {[%emt 0:00:01]} b6 {[%emt 0:00:09]} 16. c4 {[%emt 0:00:02]} dxc4 {[%emt 0:00:05]} 17. Nxc4 {[%emt 0:00:14]} Nd5 {[%emt 0:00:06]} 18. Ne3 {[%emt 0:00:10]} Bb7 {[%emt 0:00:05]} 19. Nxd5 {[%emt 0:00:22]} Bxd5 {[%emt 0:00:01]} 20. Ne4 {[%emt 0:00:01]} Bc7 {[%emt 0:00:08]} 21. Nc3 {[%emt 0:00:17]} Rh8 {[%emt 0:00:18]} 22. g3 {[%emt 0:00:08]} Rxh2 {[%emt 0:00:12]} 23. Nxd5 {[%emt 0:00:16]} Qxd5 {[%emt 0:00:02]} 24. Kf1 {[%emt 0:00:40]} Bxg3 {[%emt 0:00:11]} 25. f3 {[%emt 0:00:24]} Bxe1 {[%emt 0:00:05]} 26. Kxe1 {[%emt 0:00:06]} Rh1+ {[%emt 0:00:02]} 0-1

[Event "Austria Championship Blitz 2024"]
[Site "Innsbruck"]
[Date "2024.06.01"]
[Round "5.23"]
[White "Keferboeck, Jewgeni"]
[Black "Frolik, Michael"]
[Result "1-0"]
[ECO "B95"]
[WhiteElo "1957"]
[BlackElo "1984"]
[Annotator "RC"]
[PlyCount "31"]
[EventDate "2024.06.01"]
[EventType "swiss"]
[EventCountry "AUT"]
[SourceTitle "playchess.com"]
[Source "ChessBase"]
[SourceQuality "1"]
[TimeControl "180+2"]

1. e4 {[%emt 0:00:01]} c5 {[%emt 0:00:00]} 2. Nf3 {[%emt 0:03:05]} d6 3. d4 {[%emt 0:00:00]} cxd4 {[%emt 0:00:02]} 4. Nxd4 {[%emt 0:00:00]} Nf6 {[%emt 0:00:01]} 5. Nc3 {[%emt 0:00:06]} a6 6. Bc4 {[%emt 0:00:00]} e6 {[%emt 0:00:01]} 7. Bb3 {[%emt 0:00:00]} Qc7 {[%emt 0:00:01]} 8. Bg5 {[%emt 0:00:00]} Be7 {[%emt 0:00:02]} 9. Qe2 {[%emt 0:00:00]} Bd7 {[%emt 0:00:06]} 10. O-O-O {[%emt 0:00:00]} Nc6 {[%emt 0:00:03]} 11. Bxf6 {[%emt 0:00:00]} Bxf6 {[%emt 0:00:03]} 12. Nd5 {[%emt 0:00:00]} exd5 {[%emt 0:00:23]} 13. exd5+ {[%emt 0:00:00]} Ne7 {[%emt 0:00:02]} 14. f4 {[%emt 0:00:00]} O-O {[%emt 0:00:08]} 15. g4 {[%emt 0:00:00]} Bxd4 {[%emt 0:00:02]} 16. Rxd4 {[%emt 0:00:00]} 1-0

[Event "Austria Championship Blitz 2024"]
[Site "Innsbruck"]
[Date "2024.06.01"]
[Round "5.24"]
[White "Erhard, Jakob"]
[Black "Karall, Lorenz"]
[Result "1-0"]
[ECO "B07"]
[WhiteElo "2057"]
[BlackElo "1869"]
[Annotator "RC"]
[PlyCount "88"]
[EventDate "2024.06.01"]
[EventType "swiss"]
[EventCountry "AUT"]
[SourceTitle "playchess.com"]
[Source "ChessBase"]
[SourceQuality "1"]
[TimeControl "180+2"]

1. e4 {[%emt 0:00:01]} d6 {[%emt 0:00:01]} 2. Bc4 {[%emt 0:00:02]} Nf6 {[%emt 0:00:02]} 3. d3 {[%emt 0:00:01]} c6 {[%emt 0:00:00]} 4. Nc3 {[%emt 0:00:01]} g6 {[%emt 0:00:02]} 5. f4 {[%emt 0:00:02]} Bg7 {[%emt 0:00:01]} 6. h3 {[%emt 0:00:03]} O-O {[%emt 0:00:02]} 7. g4 {[%emt 0:00:02]} d5 {[%emt 0:00:04]} 8. exd5 {[%emt 0:03:06]} cxd5 9. Bb3 {[%emt 0:00:00]} Nc6 {[%emt 0:00:10]} 10. Nf3 {[%emt 0:00:00]} e6 {[%emt 0:00:11]} 11. Ne2 {[%emt 0:00:00]} Na5 {[%emt 0:00:09]} 12. Be3 {[%emt 0:00:00]} Nxb3 {[%emt 0:00:02]} 13. axb3 {[%emt 0:00:00]} a6 {[%emt 0:00:04]} 14. Qd2 {[%emt 0:00:00]} Qc7 {[%emt 0:00:04]} 15. c3 {[%emt 0:00:00]} Bd7 {[%emt 0:02:40]} 16. b4 {[%emt 0:00:00]} Bb5 {[%emt 0:00:00]} 17. Ned4 {[%emt 0:00:00]} Bc6 {[%emt 0:00:00]} 18. O-O {[%emt 0:00:00]} Rae8 {[%emt 0:00:00]} 19. Ne5 {[%emt 0:00:00]} Nd7 {[%emt 0:00:00]} 20. Nexc6 {[%emt 0:00:00]} bxc6 {[%emt 0:00:00]} 21. Rxa6 {[%emt 0:00:00]} c5 {[%emt 0:00:00]} 22. Rc6 {[%emt 0:00:00]} Qa7 {[%emt 0:00:00]} 23. bxc5 {[%emt 0:00:00]} Nxc5 {[%emt 0:00:00]} 24. b4 {[%emt 0:00:00]} Nd7 {[%emt 0:00:00]} 25. Qb2 {[%emt 0:00:00]} Qb7 {[%emt 0:00:00]} 26. b5 {[%emt 0:00:00]} e5 {[%emt 0:00:00]} 27. fxe5 {[%emt 0:00:00]} Nxe5 {[%emt 0:00:00]} 28. Ra6 {[%emt 0:00:00]} Nxd3 {[%emt 0:00:00]} 29. Qd2 {[%emt 0:00:00]} Nc5 {[%emt 0:00:00]} 30. Rc6 {[%emt 0:00:00]} Ne4 {[%emt 0:00:00]} 31. Qd3 {[%emt 0:00:00]} Qe7 {[%emt 0:00:00]} 32. Bf4 {[%emt 0:00:00]} Qh4 {[%emt 0:00:00]} 33. Kg2 {[%emt 0:00:00]} Nxc3 {[%emt 0:00:00]} 34. Rxc3 {[%emt 0:00:00]} Re4 {[%emt 0:00:00]} 35. Nf3 {[%emt 0:00:00]} Qe7 {[%emt 0:00:00]} 36. Bd2 {[%emt 0:00:00]} Re2+ {[%emt 0:00:00]} 37. Kg1 {[%emt 0:00:00]} d4 {[%emt 0:00:01]} 38. Rc2 {[%emt 0:00:03]} Re4 {[%emt 0:00:16]} 39. Bg5 {[%emt 0:00:03]} Qd6 {[%emt 0:00:02]} 40. Qxe4 {[%emt 0:00:03]} Qg3+ {[%emt 0:00:05]} 41. Rg2 {[%emt 0:00:57]} Qxh3 42. Nxd4 {[%emt 0:00:00]} h6 {[%emt 0:00:08]} 43. Bf6 {[%emt 0:00:00]} Bxf6 {[%emt 0:00:21]} 44. Rxf6 {[%emt 0:00:00]} Qc3 {[%emt 0:00:05]} 1-0

[Event "Austria Championship Blitz 2024"]
[Site "Innsbruck"]
[Date "2024.06.01"]
[Round "6.1"]
[White "Shengelia, David"]
[Black "Schwabeneder, Florian"]
[Result "0-1"]
[ECO "B07"]
[WhiteElo "2465"]
[BlackElo "2405"]
[Annotator "TA"]
[PlyCount "91"]
[EventDate "2024.06.01"]
[EventType "swiss"]
[EventCountry "AUT"]
[SourceTitle "playchess.com"]
[Source "ChessBase"]
[SourceQuality "1"]
[TimeControl "180+2"]

{[%evp 14,91,35,52,79,7,0,-7,11,0,48,-62,-60,-55,-60,-56,-62,-54,-43,-42,-36,-68,-64,-162,-161,-165,-159,-219,-208,-205,-187,-201,-120,-120,-120,-123,-123,-138,-138,-148,-143,-155,-140,-187,-156,-309,-156,-314,-314,-498,-484,-477,-469,-425,-432,-432,-448,-377,-756,-9795,-958,-883,-541,-1019,-1104,-1021,-799,-1079,-1090,-1143,-236,-1142,-242,-29962,-29964,-29965,-29964,-29967,-29966,-29950]} 1. d4 {[%emt 0:00:02]} d6 {[%emt 0:00:02]} 2. e4 {[%emt 0:00:05]} Nf6 {[%emt 0:00:02]} 3. Nc3 {[%emt 0:00:01]} g6 {[%emt 0:00:03]} 4. g3 {[%emt 0:00:02]} Bg7 {[%emt 0:00:01]} 5. Bg2 {[%emt 0:00:02]} O-O {[%emt 0:00:03]} 6. Nge2 {[%emt 0:00:01]} Nbd7 {[%emt 0:00:02]} 7. h3 {[%emt 0:00:04]} c5 {[%emt 0:00:03]} 8. Be3 {[%emt 0:00:17]} Rb8 {[%emt 0:00:05] [#]} 9. e5 {[%emt 0:00:42]} dxe5 $11 {[%emt 0:01:27]} 10. dxc5 {[%emt 0:00:01] [#]} e4 $1 {[%emt 0:00:40] The position is equal.} 11. O-O {[%emt 0:00:22][%cal Og3g4]} ({Much worse is} 11. Bxe4 Nxe4 12. Nxe4 Bxb2 $17) (11. Qd4 Qc7) 11... Ne5 {[%emt 0:00:02]} (11... Qc7 $11) 12. Nxe4 {[%emt 0:00:22]} (12. Qxd8 $14 Rxd8 13. Rfd1) 12... Nxe4 $15 {[%emt 0:00:02]} 13. Bxe4 {[%emt 0:00:02]} Bxh3 {[%emt 0:00:02]} 14. Qxd8 {[%emt 0:00:06]} Rfxd8 {[%emt 0:00:02]} 15. Rfd1 {[%emt 0:00:02]} Bg4 {[%emt 0:00:45]} 16. Rxd8+ Rxd8 {[%emt 0:00:01]} 17. Nc3 {[%emt 0:00:20]} Rd7 {[%emt 0:00:03]} 18. Re1 {[%emt 0:00:29] [#]} (18. a4 $15) 18... Nf3+ $1 $19 {[%emt 0:00:03]} 19. Bxf3 {[%emt 0:00:01]} Bxf3 {[%emt 0:00:01]} 20. Nb5 {[%emt 0:00:10]} (20. Kh2 $17) 20... a6 {[%emt 0:00:06]} 21. Nc3 {[%emt 0:00:02]} Bxc3 22. bxc3 {[%emt 0:00:00]} Rd1 {[%emt 0:00:06]} (22... f6 $19 23. c4 e5) 23. Rxd1 $17 {[%emt 0:00:02]} Bxd1 {[%emt 0:00:01][%mdl 4096] Endgame. KB-KB} 24. f4 {[%emt 0:00:06]} Bxc2 {[%emt 0:00:01]} 25. Kf2 {[%emt 0:00:02]} Be4 {[%emt 0:00:02]} 26. Bd4 {[%emt 0:00:01]} f6 {[%emt 0:00:01]} 27. Ke3 {[%emt 0:00:01]} Bd5 {[%emt 0:00:01]} 28. a4 {[%emt 0:00:03]} (28. a3 $17) 28... h5 {[%emt 0:00:01]} 29. Kd3 $2 {[%emt 0:00:01]} (29. c6 $17) 29... Kf7 ({Black should try} 29... Bc6 $19 30. a5 Kf7) 30. c4 $2 {This move loses the game for White.} (30. c6 $17 {only move.}) 30... Bc6 $19 {[%emt 0:00:02]} 31. a5 {[%emt 0:00:01]} (31. Ke2 {was necessary.}) 31... Ke6 {[%emt 0:00:01] White must now prevent ...Kf5.} 32. Bf2 {[%emt 0:00:07]} Kf5 {[%emt 0:00:01]} 33. Ke3 {[%emt 0:00:00]} Kg4 {[%emt 0:00:04] Hoping for ...e5.} 34. Be1 {[%emt 0:00:01]} g5 {[%emt 0:00:09]} 35. fxg5 {[%emt 0:00:02]} fxg5 {[%emt 0:00:01]} 36. Bf2 {[%emt 0:00:05]} e5 {[%emt 0:00:02]} (36... h4 $142 37. gxh4 gxh4) 37. Be1 {[%emt 0:00:05]} h4 {[%emt 0:00:01]} 38. gxh4 {[%emt 0:00:09]} gxh4 39. Bc3 {[%emt 0:00:01]} Kf5 {[%emt 0:00:05]} 40. Be1 {[%emt 0:00:00]} Kg5 {[%emt 0:00:04]} 41. Bc3 {[%emt 0:00:01]} e4 $2 {[%emt 0:00:02]} (41... Kf6 {( -> ...h3)} 42. Kf2 Kf5) 42. Be5 $2 {[%emt 0:00:01]} (42. Be1) 42... Kg4 $2 {[%emt 0:00:01]} (42... Kf5 43. Bh2 Kg4) 43. Bd6 {[%emt 0:00:07] [#]} (43. Bc3 $19) 43... Kh3 $1 {[%emt 0:00:02] Black mates.} 44. Kf2 {[%emt 0:00:02] [#]} e3+ $1 {[%emt 0:00:04][%mdl 512]} 45. Kxe3 {[%emt 0:00:06]} (45. Kg1 Kg4) 45... Kg2 {[%emt 0:00:00]} 46. Kd4 {[%emt 0:00:17] Weighted Error Value: White=0.81/Black=0.73.  Mistake:       	White=9     	Black=4      Inaccurate:     	White=2     	---        OK:         	White=6     	Black=8      Best:        	White=5     	Black=3      Strong:       	---       	Black=1} 0-1

[Event "Austria Championship Blitz 2024"]
[Site "Innsbruck"]
[Date "2024.06.01"]
[Round "6.2"]
[White "Platzgummer, Fabian"]
[Black "Balint, Peter"]
[Result "1-0"]
[ECO "D33"]
[WhiteElo "2311"]
[BlackElo "2343"]
[Annotator "RC"]
[PlyCount "53"]
[EventDate "2024.06.01"]
[EventType "swiss"]
[EventCountry "AUT"]
[SourceTitle "playchess.com"]
[Source "ChessBase"]
[SourceQuality "1"]
[TimeControl "180+2"]

1. Nf3 {[%emt 0:00:01]} Nf6 {[%emt 0:00:01]} 2. c4 {[%emt 0:00:01]} c5 {[%emt 0:00:01]} 3. Nc3 {[%emt 0:00:04]} e6 {[%emt 0:00:00]} 4. g3 {[%emt 0:00:04]} d5 {[%emt 0:00:01]} 5. cxd5 {[%emt 0:00:01]} exd5 {[%emt 0:00:00]} 6. d4 {[%emt 0:00:01]} Nc6 {[%emt 0:00:01]} 7. Bg2 {[%emt 0:00:00]} cxd4 {[%emt 0:00:01]} 8. Nxd4 {[%emt 0:00:01]} Bc5 {[%emt 0:00:00]} 9. Nxc6 {[%emt 0:00:04]} bxc6 {[%emt 0:00:01]} 10. O-O {[%emt 0:00:01]} O-O {[%emt 0:00:02]} 11. Bf4 {[%emt 0:00:07]} Bd7 {[%emt 0:00:05]} 12. Rc1 {[%emt 0:00:02]} Bb6 {[%emt 0:00:02]} 13. Na4 {[%emt 0:00:10]} Re8 {[%emt 0:00:04]} 14. b4 {[%emt 0:00:11]} h5 {[%emt 0:00:29]} 15. Nc5 {[%emt 0:00:13]} Ng4 {[%emt 0:00:39]} 16. h3 {[%emt 0:00:27]} Ne5 {[%emt 0:00:09]} 17. e4 {[%emt 0:00:08]} Ng6 {[%emt 0:00:23]} 18. Be3 {[%emt 0:00:10]} Bxc5 {[%emt 0:00:04]} 19. Rxc5 {[%emt 0:00:05]} dxe4 {[%emt 0:00:14]} 20. Qxh5 {[%emt 0:00:07]} Qf6 {[%emt 0:00:11]} 21. Rd1 {[%emt 0:00:08]} Qe6 {[%emt 0:00:09]} 22. Rd4 {[%emt 0:00:10]} Rad8 {[%emt 0:00:16]} 23. Bxe4 {[%emt 0:00:21]} Qxa2 {[%emt 0:00:25]} 24. Bxg6 {[%emt 0:00:21]} fxg6 {[%emt 0:00:04]} 25. Qxg6 {[%emt 0:00:04]} Be6 {[%emt 0:00:17]} 26. Rg5 {[%emt 0:00:25]} Qa1+ {[%emt 0:00:06]} 27. Kh2 {[%emt 0:00:02]} 1-0

[Event "Austria Championship Blitz 2024"]
[Site "Innsbruck"]
[Date "2024.06.01"]
[Round "6.3"]
[White "Binder, Moriz"]
[Black "Horvath, Dominik"]
[Result "0-1"]
[ECO "D02"]
[WhiteElo "2210"]
[BlackElo "2554"]
[Annotator "TA"]
[PlyCount "68"]
[EventDate "2024.06.01"]
[EventType "swiss"]
[EventCountry "AUT"]
[SourceTitle "playchess.com"]
[Source "ChessBase"]
[SourceQuality "1"]
[TimeControl "180+2"]

{[%evp 9,68,19,19,25,24,26,15,0,5,0,0,-24,-8,-37,-21,-49,-65,-67,-37,-41,-39,-57,-55,-52,0,-35,0,-55,0,0,0,0,0,0,41,28,31,23,18,0,0,0,0,-8,0,0,-5,-12,0,0,0,-66,-44,-35,-39,-46,-22,-22,-15,-720,-687]} 1. d4 {[%emt 0:00:00]} Nf6 {[%emt 0:00:01]} 2. Nf3 {[%emt 0:00:01]} g6 {[%emt 0:00:02]} 3. Nbd2 {[%emt 0:00:02]} d5 {[%emt 0:00:00]} 4. b4 {[%emt 0:00:01]} a5 {[%emt 0:00:03]} 5. b5 {[%emt 0:00:01]} c5 {[%emt 0:00:00]} 6. bxc6 {[%emt 0:00:02]} Nxc6 {[%emt 0:00:01]} 7. e3 {[%emt 0:00:01]} Bf5 {[%emt 0:00:01]} 8. a3 {[%emt 0:00:16] The position is equal.} Bg7 {[%emt 0:00:21]} 9. c4 {[%emt 0:00:02]} O-O {[%emt 0:00:05][%cal Oe7e5]} 10. Be2 {[%emt 0:00:04]} Ne4 {[%emt 0:00:06]} (10... e5 {feels hotter.} 11. dxe5 Ne4 12. Bb2 dxc4 13. Nxc4 b5) 11. Nxe4 {[%emt 0:00:23]} Bxe4 {[%emt 0:00:01]} 12. O-O {[%emt 0:00:01]} e5 {[%emt 0:00:06]} 13. cxd5 {[%emt 0:00:19]} Bxd5 {[%emt 0:00:10]} (13... exd4 $5 14. exd4 (14. dxc6 d3 $17) 14... Qxd5 $17 (14... Bxd5 15. a4 $15)) 14. dxe5 {[%emt 0:00:54]} Nxe5 {[%emt 0:00:01]} 15. Rb1 {[%emt 0:00:17] [#] And now Nxe5 would win.} Be4 {[%emt 0:00:38]} 16. Rb5 {[%emt 0:00:27]} Nd3 {[%emt 0:00:06]} (16... Bc6 $15 17. Rxe5 Bxf3) 17. Bd2 {[%emt 0:00:17]} (17. Ng5 $5 Nxc1 18. Nxe4 Nxe2+ 19. Qxe2 $11) 17... Bc6 {[%emt 0:00:07]} 18. Rb1 {[%emt 0:00:03]} (18. Rxa5 $1 $11 Rxa5 19. Bxa5 Qxa5 20. Qxd3) 18... Rc8 {[%emt 0:00:29]} ({Better is} 18... Nb2 $15 19. Qc1 Be4 20. Rxb2 Rc8) 19. Bxa5 $11 {[%emt 0:00:06]} Qxa5 {[%emt 0:00:01]} 20. Qxd3 {[%emt 0:00:03]} Rfd8 {[%emt 0:00:01]} 21. Qb3 {[%emt 0:00:05]} Be4 {[%emt 0:00:09] A strong pair of Bishops.} 22. Qb4 {[%emt 0:00:02]} Qf5 {[%emt 0:00:23][%cal Og7f8]} 23. Rbd1 {[%emt 0:00:07]} Bf8 {[%emt 0:00:03]} 24. Qb2 {[%emt 0:00:06]} Rxd1 {[%emt 0:00:10]} 25. Rxd1 {[%emt 0:00:01]} Rc2 {[%emt 0:00:03]} 26. Qb5 {[%emt 0:00:01]} Qxb5 {[%emt 0:00:46]} (26... Bxa3 $2 {too greedy.} 27. Qe8+ Bf8 28. Rd8 $18) 27. Bxb5 {[%emt 0:00:01]} Bxa3 {[%emt 0:00:00]} 28. Nd4 {[%emt 0:00:01]} Rc7 {[%emt 0:00:00]} 29. f3 {[%emt 0:00:02]} Bd5 {[%emt 0:00:00]} 30. Nc2 {[%emt 0:00:06]} Rxc2 {[%emt 0:00:00]} 31. Rxd5 {[%emt 0:00:01]} Bc5 {[%emt 0:00:00]} 32. Re5 {[%emt 0:00:05]} b6 {[%emt 0:00:00]} 33. h4 {[%emt 0:00:03]} Kg7 {[%emt 0:00:00]} 34. Kh2 $2 {[%emt 0:00:01][%mdl 8192] [#]} (34. Kf1 $11) 34... Bd6 {[%emt 0:00:00] Weighted Error Value: White=0.35/Black=0.12 (very precise) .  Loses game:     	White=1     	---        Mistake:       	White=2     	Black=2      Inaccurate:     	White=3     	Black=3      OK:         	White=8     	Black=13} 0-1

[Event "Austria Championship Blitz 2024"]
[Site "Innsbruck"]
[Date "2024.06.01"]
[Round "6.4"]
[White "Wetscher, Wolfgang"]
[Black "Kruckenhauser, Arthur"]
[Result "0-1"]
[ECO "A00"]
[WhiteElo "1937"]
[BlackElo "2340"]
[Annotator "RC"]
[PlyCount "97"]
[EventDate "2024.06.01"]
[EventType "swiss"]
[EventCountry "AUT"]
[SourceTitle "playchess.com"]
[Source "ChessBase"]
[SourceQuality "1"]
[TimeControl "180+2"]

1. c3 {[%emt 0:00:00]} g6 {[%emt 0:00:01]} 2. Qc2 {[%emt 0:00:01]} Bg7 {[%emt 0:03:05]} 3. d3 b6 {[%emt 0:00:00]} 4. Nd2 {[%emt 0:03:09]} Bb7 5. e4 {[%emt 0:00:00]} e6 {[%emt 0:00:00]} 6. Ngf3 {[%emt 0:00:00]} Ne7 {[%emt 0:00:00]} 7. Be2 {[%emt 0:00:00]} d6 {[%emt 0:00:00]} 8. Nf1 {[%emt 0:00:00]} Nd7 {[%emt 0:00:00]} 9. Ng3 {[%emt 0:00:00]} c5 {[%emt 0:00:00]} 10. Bd2 {[%emt 0:00:00]} Qc7 {[%emt 0:00:00]} 11. Rd1 {[%emt 0:00:00]} a6 {[%emt 0:00:00]} 12. Qc1 {[%emt 0:00:00]} h5 {[%emt 0:00:00]} 13. h4 {[%emt 0:00:00]} b5 {[%emt 0:00:00]} 14. Ng5 {[%emt 0:00:00]} Rf8 {[%emt 0:00:00]} 15. Nh7 {[%emt 0:00:00]} Rh8 {[%emt 0:00:00]} 16. Ng5 {[%emt 0:00:00]} Nc6 {[%emt 0:00:00]} 17. Be3 {[%emt 0:00:00]} Nb6 {[%emt 0:00:00]} 18. f4 {[%emt 0:00:00]} O-O-O {[%emt 0:00:00]} 19. a3 {[%emt 0:00:00]} Rhf8 {[%emt 0:00:00]} 20. Nh7 {[%emt 0:00:00]} Rfe8 {[%emt 0:00:00]} 21. Ng5 {[%emt 0:00:34]} Re7 {[%emt 0:00:38]} 22. Nf3 {[%emt 0:00:00]} f5 {[%emt 0:00:00]} 23. Ng5 {[%emt 0:00:00]} Rde8 {[%emt 0:00:00]} 24. O-O {[%emt 0:00:00]} Nd7 {[%emt 0:00:00]} 25. Nh1 {[%emt 0:00:00]} Bf6 {[%emt 0:00:00]} 26. Nf2 {[%emt 0:00:00]} Bxg5 {[%emt 0:00:00]} 27. fxg5 {[%emt 0:00:00]} Rf8 {[%emt 0:00:00]} 28. Nh3 {[%emt 0:00:00]} fxe4 {[%emt 0:00:00]} 29. Rxf8+ {[%emt 0:00:00]} Nxf8 {[%emt 0:00:00]} 30. dxe4 {[%emt 0:00:00]} Ne5 {[%emt 0:00:00]} 31. Bf4 {[%emt 0:00:00]} Bxe4 {[%emt 0:00:00]} 32. Bxe5 {[%emt 0:00:00]} dxe5 {[%emt 0:00:00]} 33. Nf2 {[%emt 0:00:00]} Bb7 {[%emt 0:00:00]} 34. Bf3 {[%emt 0:00:00]} Bxf3 {[%emt 0:00:00]} 35. gxf3 {[%emt 0:00:00]} Rf7 {[%emt 0:00:00]} 36. Qe3 {[%emt 0:00:00]} Rd7 {[%emt 0:00:02]} 37. Rd2 {[%emt 0:00:00]} Rxd2 {[%emt 0:00:05]} 38. Qxd2 {[%emt 0:00:00]} Qd7 {[%emt 0:00:09]} 39. Qxd7+ {[%emt 0:00:05]} Nxd7 {[%emt 0:00:02]} 40. Ne4 {[%emt 0:00:01]} Kc7 {[%emt 0:00:05]} 41. Kf2 {[%emt 0:00:01]} c4 {[%emt 0:00:02]} 42. Ke3 {[%emt 0:00:02]} Kc6 {[%emt 0:00:02]} 43. Kd2 {[%emt 0:00:02]} Nb6 {[%emt 0:00:00]} 44. Nf6 {[%emt 0:00:09]} Nd5 {[%emt 0:00:00]} 45. Nh7 {[%emt 0:00:14]} Kd6 {[%emt 0:00:00]} 46. Nf8 {[%emt 0:00:06]} Nf4 {[%emt 0:00:00]} 47. Nh7 {[%emt 0:00:03]} Ng2 {[%emt 0:00:00]} 48. Nf8 {[%emt 0:00:04]} Nxh4 {[%emt 0:00:00]} 49. Ke1 {[%emt 0:00:09]} 0-1

[Event "Austria Championship Blitz 2024"]
[Site "Innsbruck"]
[Date "2024.06.01"]
[Round "6.5"]
[White "Myagmarsuren, Mandukhai"]
[Black "Hengl, Philip"]
[Result "0-1"]
[ECO "D41"]
[WhiteElo "2092"]
[BlackElo "2173"]
[Annotator "RC"]
[PlyCount "112"]
[EventDate "2024.06.01"]
[EventType "swiss"]
[EventCountry "AUT"]
[SourceTitle "playchess.com"]
[Source "ChessBase"]
[SourceQuality "1"]
[TimeControl "180+2"]

1. d4 {[%emt 0:00:01]} Nf6 {[%emt 0:00:01]} 2. c4 {[%emt 0:00:01]} e6 {[%emt 0:00:00]} 3. Nc3 {[%emt 0:00:02]} d5 {[%emt 0:00:01]} 4. cxd5 {[%emt 0:00:01]} Nxd5 {[%emt 0:00:01]} 5. e4 {[%emt 0:00:01]} Nxc3 {[%emt 0:00:01]} 6. bxc3 {[%emt 0:00:02]} c5 {[%emt 0:00:01]} 7. Nf3 {[%emt 0:00:01]} cxd4 {[%emt 0:00:04]} 8. cxd4 {[%emt 0:00:01]} Bb4+ {[%emt 0:00:01]} 9. Bd2 {[%emt 0:00:02]} Bxd2+ {[%emt 0:00:02]} 10. Qxd2 {[%emt 0:00:01]} O-O {[%emt 0:00:03]} 11. Bc4 {[%emt 0:00:01]} Nd7 {[%emt 0:00:01]} 12. O-O {[%emt 0:00:04]} b6 {[%emt 0:00:01]} 13. d5 {[%emt 0:00:05]} Nc5 {[%emt 0:00:01]} 14. dxe6 {[%emt 0:00:11]} Bxe6 {[%emt 0:00:04]} 15. Bxe6 {[%emt 0:00:03]} Nxe6 {[%emt 0:00:01]} 16. Rfd1 {[%emt 0:00:09]} Nc5 {[%emt 0:00:14]} 17. Qe3 {[%emt 0:00:11]} Qe7 {[%emt 0:00:03]} 18. e5 {[%emt 0:00:04]} Rad8 {[%emt 0:00:08]} 19. Nd4 {[%emt 0:00:06]} Qd7 {[%emt 0:00:59]} 20. f4 {[%emt 0:00:14]} Ne6 {[%emt 0:00:18]} 21. Nxe6 {[%emt 0:00:10]} Qxe6 {[%emt 0:00:05]} 22. Rf1 {[%emt 0:00:10]} Rfe8 {[%emt 0:00:06]} 23. Qg3 {[%emt 0:00:06]} Qf5 {[%emt 0:00:04]} 24. Rad1 {[%emt 0:00:09]} g6 {[%emt 0:00:02]} 25. Qf3 {[%emt 0:00:04]} h5 {[%emt 0:00:08]} 26. h3 {[%emt 0:00:06]} Qc2 {[%emt 0:00:12]} 27. Rxd8 Rxd8 {[%emt 0:00:01]} 28. Rf2 {[%emt 0:00:08]} Qd1+ {[%emt 0:00:19]} 29. Qxd1 {[%emt 0:00:04]} Rxd1+ {[%emt 0:00:00]} 30. Rf1 {[%emt 0:00:12]} Rd2 {[%emt 0:00:04]} 31. Rf2 {[%emt 0:00:01]} Rd1+ {[%emt 0:00:01]} 32. Rf1 {[%emt 0:00:01]} Rd5 {[%emt 0:00:06]} 33. Rf2 {[%emt 0:00:07]} Kf8 {[%emt 0:00:02]} 34. Rc2 {[%emt 0:00:01]} a5 {[%emt 0:00:08]} 35. Kf2 {[%emt 0:00:02]} Rd3 {[%emt 0:00:13]} 36. Rb2 {[%emt 0:00:06]} Ra3 {[%emt 0:00:06]} 37. Rxb6 {[%emt 0:00:19]} Rxa2+ {[%emt 0:00:01]} 38. Kf3 {[%emt 0:00:01]} a4 {[%emt 0:00:12]} 39. Ra6 {[%emt 0:00:02]} Ra3+ {[%emt 0:00:03]} 40. Ke4 {[%emt 0:00:07]} Rg3 {[%emt 0:00:07]} 41. Rxa4 {[%emt 0:00:01]} Rxg2 {[%emt 0:00:01]} 42. Ra3 {[%emt 0:00:13]} h4 {[%emt 0:00:05]} 43. e6 {[%emt 0:00:14]} Re2+ {[%emt 0:00:02]} 44. Kf3 {[%emt 0:00:06]} Rxe6 {[%emt 0:00:03]} 45. Kg4 {[%emt 0:00:01]} Rf6 {[%emt 0:00:08]} 46. Ra4 {[%emt 0:00:03]} Kg7 {[%emt 0:00:02]} 47. Kxh4 {[%emt 0:00:02]} Rf5 {[%emt 0:00:02]} 48. Kg4 {[%emt 0:00:01]} Rh5 {[%emt 0:00:02]} 49. Ra7 {[%emt 0:00:04]} Rb5 {[%emt 0:00:01]} 50. h4 {[%emt 0:00:05]} Rf5 {[%emt 0:00:01]} 51. Ra4 {[%emt 0:00:02]} Kh6 {[%emt 0:00:05]} 52. Ra6 {[%emt 0:00:05]} Rb5 {[%emt 0:00:03]} 53. Rf6 {[%emt 0:00:02]} Kg7 {[%emt 0:00:02]} 54. Ra6 {[%emt 0:00:07]} Rb3 {[%emt 0:00:01]} 55. Rc6 {[%emt 0:00:03]} f5+ {[%emt 0:00:02]} 56. Kg5 {[%emt 0:00:02]} Rg3# {[%emt 0:00:09]} 0-1